fUSD/lending_fUSD_20250217
["ID","MTS","AMOUNT","RATE_DAILY","PERIOD"]
[353419942,1739821832805,-150.0,0.00013315,2]
[353419943,1739821832814,-191.65564496,0.00013315,2]
[353419944,1739821832824,-970.73883033,0.00013472,2]
[353419945,1739821832835,-29.26116967,0.00013472,2]
[353419946,1739821832844,-413.6300716,0.00013549,2]
[353419947,1739821832854,-285.42,0.00013561,2]
[353419948,1739821832864,-334.21349985,0.0001357,2]
[353419949,1739821832874,-10000.000001,0.000136,2]
[353419950,1739821832883,-158.44646067,0.000136,2]
[353419951,1739821832893,-562.76049765,0.00013616,2]
[353419952,1739821832903,-150.0,0.00013616,2]
[353419953,1739821832912,-150.0,0.00013616,2]
[353419954,1739821832922,-150.0,0.00013616,2]
[353419955,1739821832932,-247.02,0.00013616,2]
[353419956,1739821832941,-562.76049765,0.00013671,2]
[353419957,1739821832950,-150.0,0.00013685,2]
[353419958,1739821832960,-509.85459837,0.00013698,2]
[353419959,1739821832970,-257.06061416,0.00013698,2]
[353419960,1739821832979,-500.50916,0.00013698,2]
[353419961,1739821832989,-500.0,0.00013698,2]
[353419962,1739821832998,-500.0,0.00013698,2]
[353419963,1739821833008,-500.0,0.00013698,2]
[353419964,1739821833017,-500.0,0.00013698,2]
[353419965,1739821833027,-500.0,0.00013698,2]
[353419966,1739821833037,-203.30088894,0.00013698,2]
[353419967,1739821833046,-501.00961371,0.00013698,2]
[353419968,1739821833056,-509.51289663,0.00013698,2]
[353419969,1739821833066,-361.78357167,0.00013698,2]
[353419970,1739821833075,-500.0,0.00013698,2]
[353419971,1739821833085,-500.0,0.00013698,2]
[353419972,1739821833095,-500.0,0.00013698,2]
[353419973,1739821833106,-507.1675863,0.00013698,2]
[353419974,1739821833115,-472.07611542,0.00013698,2]
[353419975,1739821833125,-500.0,0.00013698,2]
[353419976,1739821833134,-535.14,0.00013698,2]
[353419977,1739821833144,-500.0,0.00013698,2]
[353419978,1739821833153,-500.0,0.00013698,2]
[353419979,1739821833162,-500.0,0.00013698,2]
[353419980,1739821833172,-500.0,0.00013698,2]
[353419981,1739821833181,-500.0,0.00013698,2]
[353419982,1739821833190,-500.0,0.00013698,2]
[353419983,1739821833200,-500.0,0.00013698,2]
[353419984,1739821833209,-500.0,0.00013698,2]
[353419985,1739821833219,-500.0,0.00013698,2]
[353419986,1739821833228,-500.0,0.00013698,2]
[353419987,1739821833238,-500.0,0.00013698,2]
[353419988,1739821833247,-500.0,0.00013698,2]
[353419989,1739821833257,-500.0,0.00013698,2]
[353419990,1739821833267,-500.0,0.00013698,2]
[353419991,1739821833276,-642.82670003,0.00013698,2]
[353419992,1739821833285,-500.0,0.00013698,2]
[353419993,1739821833295,-500.0,0.00013698,2]
[353419994,1739821833500,-306.74913196,0.00013698,2]
[353419995,1739821833511,-586.43,0.00013698,2]
[353419996,1739821833521,-500.0,0.00013698,2]
[353419997,1739821833531,-500.0,0.00013698,2]
[353419998,1739821833540,-512.36,0.00013698,2]
[353419999,1739821833550,-500.0,0.00013698,2]
[353420000,1739821833559,-448.45074046,0.00013698,2]
[353420001,1739821833569,-500.0,0.00013698,2]
[353420002,1739821833578,-500.0,0.00013698,2]
[353420003,1739821833588,-503.86471118,0.00013698,2]
[353420004,1739821833599,-500.0,0.00013698,2]
[353420005,1739821833610,-500.0,0.00013698,2]
[353420006,1739821833620,-500.0,0.00013698,2]
[353420007,1739821833630,-500.0,0.00013698,2]
[353420008,1739821833640,-500.0,0.00013698,2]
[353420009,1739821833649,-500.0,0.00013698,2]
[353420010,1739821833659,-500.0,0.00013698,2]
[353420011,1739821833669,-500.0,0.00013698,2]
[353420012,1739821833681,-519.77989122,0.00013698,2]
[353420013,1739821833691,-500.0,0.00013698,2]
[353420014,1739821833701,-500.0,0.00013698,2]
[353420015,1739821833710,-500.0,0.00013698,2]
[353420016,1739821833720,-500.0,0.00013698,2]
[353420017,1739821833729,-500.0,0.00013698,2]
[353420018,1739821833739,-500.0,0.00013698,2]
[353420019,1739821833748,-500.0,0.00013698,2]
[353420020,1739821833759,-500.0,0.00013698,2]
[353420021,1739821833769,-500.0,0.00013698,2]
[353420022,1739821833778,-500.0,0.00013698,2]
[353420023,1739821833788,-569.3,0.00013698,2]
[353420024,1739821833797,-500.0,0.00013698,2]
[353420025,1739821833807,-477.46970867,0.00013698,2]
[353420026,1739821833817,-500.0,0.00013698,2]
[353420027,1739821833826,-304.94,0.00013698,2]
[353420028,1739821833835,-500.0,0.00013698,2]
[353420029,1739821833844,-500.0,0.00013698,2]
[353420030,1739821833854,-500.0,0.00013698,2]
[353420031,1739821833864,-388.45,0.00013698,2]
[353420032,1739821833874,-210.54,0.00013698,2]
[353420033,1739821833883,-315.71,0.00013698,2]
[353420034,1739821833893,-500.0,0.00013698,2]
[353420035,1739821833902,-171.24,0.00013698,2]
[353420036,1739821833912,-186.5,0.00013698,2]
[353420037,1739821833921,-500.0,0.00013698,2]
[353420038,1739821833931,-500.0,0.00013698,2]
[353420039,1739821833941,-580.81,0.00013698,2]
[353420040,1739821833950,-500.0,0.00013698,2]
[353420041,1739821833959,-24.76482392,0.00013698,2]
[353420042,1739821837940,-158.85517608,0.00013698,2]
[353420043,1739821837950,-500.0,0.00013698,2]
[353420044,1739821837959,-295.66,0.00013698,2]
[353420045,1739821837968,-249.77,0.00013698,2]
[353420046,1739821837978,-500.0,0.00013698,2]
[353420047,1739821837987,-500.0,0.00013698,2]
[353420048,1739821837997,-500.0,0.00013698,2]
[353420049,1739821838006,-500.0,0.00013698,2]
[353420050,1739821838015,-500.0,0.00013698,2]
[353420051,1739821838026,-417.54,0.00013698,2]
[353420052,1739821838035,-500.0,0.00013698,2]
[353420053,1739821838045,-500.0,0.00013698,2]
[353420054,1739821838055,-278.17482392,0.00013698,2]
[353420055,1739821838067,-221.82517608,0.00013698,2]
[353420056,1739821838076,-459.38,0.00013698,2]
[353420057,1739821838085,-422.71040076,0.00013698,2]
[353420577,1739821843108,-77.28959924,0.00013698,2]
[353420579,1739821843118,-365.54,0.00013698,2]
[353420581,1739821843127,-604.28,0.00013698,2]
[353420583,1739821843137,-202.35,0.00013698,2]
[353420585,1739821843146,-500.0,0.00013698,2]
[353420587,1739821843155,-500.0,0.00013698,2]
[353420589,1739821843164,-500.0,0.00013698,2]
[353420591,1739821843174,-500.0,0.00013698,2]
[353420593,1739821843183,-483.20158051,0.00013698,2]
[353420595,1739821843192,-500.0,0.00013698,2]
[353420597,1739821843201,-500.0,0.00013698,2]
[353420599,1739821843210,-498.67,0.00013698,2]
[353420600,1739821843219,-500.0,0.00013698,2]
[353420602,1739821843228,-500.0,0.00013698,2]
[353420604,1739821843238,-500.0,0.00013698,2]
[353420606,1739821843247,-500.0,0.00013698,2]
[353420608,1739821843256,-500.0,0.00013698,2]
[353420610,1739821843265,-500.0,0.00013698,2]
[353420612,1739821843274,-500.0,0.00013698,2]
[353420614,1739821843283,-500.0,0.00013698,2]
[353420616,1739821843292,-304.82,0.00013698,2]
[353420618,1739821843301,-500.0,0.00013698,2]
[353420620,1739821843311,-500.0,0.00013698,2]
[353420622,1739821843320,-500.0,0.00013698,2]
[353420624,1739821843329,-500.0,0.00013698,2]
[353420626,1739821843338,-500.0,0.00013698,2]
[353420628,1739821843347,-616.86,0.00013698,2]
[353420630,1739821843356,-500.0,0.00013698,2]
[353420632,1739821843365,-500.0,0.00013698,2]
[353420634,1739821843375,-456.1,0.00013698,2]
[353420636,1739821843385,-502.64462557,0.00013698,2]
[353420638,1739821843394,-500.0,0.00013698,2]
[353420640,1739821843403,-285.63,0.00013698,2]
[353420641,1739821843411,-500.0,0.00013698,2]
[353420643,1739821843420,-500.0,0.00013698,2]
[353420645,1739821843430,-500.0,0.00013698,2]
[353420647,1739821843439,-212.2,0.00013698,2]
[353420649,1739821843448,-500.0,0.00013698,2]
[353420651,1739821843457,-500.0,0.00013698,2]
[353420654,1739821843466,-274.42,0.00013698,2]
[353420657,1739821843476,-500.0,0.00013698,2]
[353420659,1739821843486,-500.0,0.00013698,2]
[353420661,1739821843495,-500.0,0.00013698,2]
[353420663,1739821843504,-500.0,0.00013698,2]
[353420665,1739821843513,-499.997,0.00013698,2]
[353420667,1739821843522,-500.0,0.00013698,2]
[353420669,1739821843532,-500.0,0.00013698,2]
[353420671,1739821843541,-467.79980036,0.00013698,2]
[353420675,1739821843567,-32.20019964,0.00013698,2]
[353420677,1739821843576,-218.84476885,0.00013698,2]
[353420679,1739821843588,-281.15523115,0.00013698,2]
[353420681,1739821843598,-500.0,0.00013698,2]
[353420683,1739821843610,-500.0,0.00013698,2]
[353420685,1739821843621,-500.0,0.00013698,2]
[353420687,1739821843632,-500.0,0.00013698,2]
[353420689,1739821843643,-500.0,0.00013698,2]
[353420691,1739821843653,-500.0,0.00013698,2]
[353420693,1739821843664,-500.0,0.00013698,2]
[353420695,1739821843675,-500.0,0.00013698,2]
[353420697,1739821843686,-500.0,0.00013698,2]
[353420699,1739821843696,-500.0,0.00013698,2]
[353420701,1739821843706,-55.54476885,0.00013698,2]
[353420932,1739821845995,-444.45523115,0.00013698,2]
[353420934,1739821846004,-500.0,0.00013698,2]
[353420936,1739821846014,-500.0,0.00013698,2]
[353420938,1739821846023,-85.68408765,0.00013698,2]
[353420952,1739821846152,-421.23537562,0.00013698,2]
[353420955,1739821846162,-500.0,0.00013698,2]
[353420957,1739821846172,-500.0,0.00013698,2]
[353420959,1739821846182,-208.45738254,0.00013698,2]
[353420961,1739821846192,-500.0,0.00013698,2]
[353420962,1739821846202,-500.0,0.00013698,2]
[353420964,1739821846211,-44.20724184,0.00013698,2]
[353420967,1739821846222,-150.23118978,0.00013698,2]
[353420969,1739821846231,-253.42336916,0.00013698,2]
[353421571,1739823032198,-1591.67605475,8.836e-05,2]
[353421572,1739823032212,-300.21384525,8.836e-05,2]
[353421573,1739823032223,-201.29657453,8.851e-05,2]
[353421574,1739823032232,-500.0,8.851e-05,2]
[353421575,1739823032242,-1930.8954,8.851e-05,2]
[353421576,1739823032252,-150.0,8.912e-05,2]
[353421577,1739823032261,-1849.59418022,8.973e-05,2]
[353421578,1739823032272,-95.05461978,8.973e-05,2]
[353421579,1739823032281,-161.51,9.237e-05,2]
[353421580,1739823032290,-26.18792582,9.667e-05,2]
[353421581,1739823032302,-273.81207418,9.667e-05,2]
[353421582,1739823032311,-1807.96,9.668e-05,2]
[353421583,1739823032321,-150.0,9.736e-05,2]
[353421584,1739823032330,-800.0,9.968e-05,2]
[353421585,1739823032340,-900.0,9.968e-05,2]
[353421586,1739823032349,-500.0,9.968e-05,2]
[353421587,1739823032358,-550.0,0.0001,2]
[353421588,1739823032367,-26.23003302,0.00010137,2]
[353421589,1739823032379,-200.44996698,0.00010137,2]
[353421590,1739823032388,-715.09003302,0.00010447,4]
[353421591,1739823032400,-284.90996698,0.00010447,4]
[353421592,1739823032410,-420.0,0.00010633,2]
[353421593,1739823032420,-2000.0,0.00010907,4]
[353421594,1739823032429,-800.0,0.00011338,2]
[353421595,1739823032439,-900.0,0.00011338,2]
[353421596,1739823032448,-30.4725081,0.00011359,4]
[353421597,1739823032460,-725.4122558,0.00011359,4]
[353421598,1739823032492,-1244.1152361,0.00011359,4]
[353421599,1739823032501,-178.87,0.0001151,2]
[353421600,1739823032510,-348.95,0.00011538,2]
[353421601,1739823032519,-518.58,0.00011604,2]
[353421602,1739823032529,-587.0,0.00011696,2]
[353421603,1739823032538,-153.32,0.00011726,2]
[353421604,1739823032548,-201.19,0.00011736,2]
[353421605,1739823032557,-169.16,0.000118,2]
[353421606,1739823032567,-150.0,0.0001182,2]
[353421607,1739823032576,-2000.0,0.00011859,4]
[353421608,1739823032585,-1807.96,0.00011931,2]
[353421609,1739823032594,-500.0,0.00011951,2]
[353421610,1739823032603,-2000.0,0.0001199,2]
[353421611,1739823032613,-150.0,0.0001199,2]
[353421612,1739823032622,-600.0,0.00012,2]
[353421614,1739823032631,-1000.0,0.00012075,2]
[353421615,1739823032640,-1028.48,0.00012087,2]
[353421616,1739823032649,-28190.12015864,0.00012087,2]
[353421617,1739823032660,-691.94858545,0.00012087,2]
[353421618,1739823032670,-1117.92125591,0.00012087,2]
[353421620,1739823032680,-250.0,0.00012228,2]
[353421621,1739823032689,-2000.0,0.0001232,4]
[353421623,1739823032698,-200.0,0.00012428,2]
[353421625,1739823032707,-2000.0,0.00012652,2]
[353421627,1739823032719,-800.0,0.00012708,2]
[353421630,1739823032729,-900.0,0.00012708,2]
[353421631,1739823032738,-500.0,0.00012708,2]
[353421634,1739823032749,-201.29657453,0.00012796,2]
[353421636,1739823032758,-2000.0,0.00012803,4]
[353421638,1739823032768,-570.0,0.00012866,2]
[353421640,1739823032777,-150.0,0.00012896,2]
[353421642,1739823032787,-193.19827275,0.00012896,2]
[353421644,1739823032798,-150.0,0.00012896,2]
[353421645,1739823032807,-150.0,0.0001298,2]
[353421646,1739823032817,-255.0,0.00013069,2]
[353421648,1739823032826,-5553.0,0.000132,5]
[353421650,1739823032836,-500.0,0.0001326,2]
[353421653,1739823032846,-1877.11421933,0.00013366,4]
[353421656,1739823032865,-122.88578067,0.00013366,4]
[353421657,1739823032874,-150.0,0.00013366,2]
[353421658,1739823032883,-1000.0,0.0001337,2]
[353421659,1739823032892,-150.0,0.00013443,2]
[353421660,1739823032902,-243.87103547,0.0001355,2]
[353421661,1739823032913,-1680.07840722,0.0001355,2]
[353421662,1739823032923,-319.98596285,0.00013573,2]
[353421663,1739823032932,-150.0,0.00013583,2]
[353421664,1739823032942,-1000.0,0.00013584,2]
[353421665,1739823032953,-506.88,0.00013598,2]
[353421666,1739823032964,-502.53,0.00013598,2]
[353421667,1739823032976,-103.71038056,0.000136,3]
[353421674,1739823038051,-611.26363651,8.851e-05,2]
[353421675,1739823038064,-734.09,8.851e-05,2]
[353421676,1739823038104,-1154.64636349,8.851e-05,2]
[353421677,1739823038113,-9896.28961844,0.000136,3]
[353421678,1739823038123,-413.6300717,0.00013602,2]
[353421679,1739823038133,-150.0,0.00013612,2]
[353421680,1739823038142,-163.37788915,0.00013616,2]
[353421681,1739823038152,-150.0,0.00013623,2]
[353421682,1739823038161,-150.0,0.00013639,2]
[353421683,1739823038170,-226.47345785,0.00013648,3]
[353421684,1739823038179,-8795.58259937,0.00013648,3]
[353421685,1739823038189,-3200.0957014,0.00013648,3]
[353421686,1739823038200,-277.40067284,0.00013648,3]
[353421687,1739823038211,-10006.57979904,0.00013648,3]
[353421688,1739823038223,-448.49998,0.00013648,3]
[353421689,1739823038237,-9328.43282525,0.00013648,3]
[353421690,1739823038248,-2380.87167549,0.00013648,3]
[353421691,1739823038261,-1438.54061176,0.00013648,3]
[353421692,1739823038271,-5535.40034938,0.00013648,3]
[353421693,1739823038283,-24990.56871649,0.00013648,3]
[353421694,1739823038294,-4200.0,0.00013648,3]
[353421695,1739823038305,-130515.85204253,0.00013648,3]
[353421696,1739823038315,-384.47,0.00013648,3]
[353421697,1739823038326,-763.50334123,0.00013648,3]
[353421698,1739823038337,-643.515,0.00013648,3]
[353421699,1739823038347,-1025.0,0.00013648,3]
[353421700,1739823038378,-1063.00136618,0.00013648,3]
[353421701,1739823038391,-964.63217687,0.00013648,3]
[353421702,1739823038404,-6305.36144738,0.00013648,3]
[353421703,1739823038417,-852.31803642,0.00013648,3]
[353421704,1739823038426,-183.58026891,0.0001365,2]
[353421705,1739823038435,-491.78105577,0.0001365,2]
[353421706,1739823038446,-3931.016471,0.0001365,2]
[353421707,1739823038457,-20968.2119877,0.0001365,2]
[353421708,1739823038467,-1020.52694277,0.0001365,2]
[353421709,1739823038484,-7348.41992435,0.0001365,2]
[353421889,1739823040167,-739.50226846,0.0001365,2]
[353421892,1739823040179,-659.36071556,0.0001365,2]
[353421897,1739823040222,-380.43,0.0001365,2]
[353421899,1739823040234,-14460.75063439,0.0001365,2]
[353421901,1739823040243,-4602.6089689,0.0001365,2]
[353421903,1739823040254,-388.345,0.0001365,2]
[353421906,1739823040274,-502.93739618,0.0001365,2]
[353421923,1739823040434,-93071.60879915,0.0001365,2]
[353421924,1739823040444,-163.37788915,0.00013671,2]
[353421926,1739823040454,-266.41588234,0.00013673,2]
[353421928,1739823040464,-500.22692545,0.00013673,2]
[353421930,1739823040473,-156.37580493,0.00013673,2]
[353421932,1739823040484,-160.49403483,0.00013673,2]
[353421934,1739823040493,-261.60675698,0.00013673,2]
[353421936,1739823040510,-3486.80858886,0.0001368,2]
[353421938,1739823040520,-478.46391165,0.0001368,2]
[353421940,1739823040529,-153.60690226,0.00013681,2]
[353421942,1739823040539,-500.0,0.00013697,2]
[353421944,1739823040549,-178.68388447,0.00013697,2]
[353421946,1739823040558,-500.0,0.00013697,2]
[353421948,1739823040567,-176.53883887,0.00013697,2]
[353421950,1739823040575,-500.0,0.00013697,2]
[353421952,1739823040585,-620.33094542,0.00013697,2]
[353421954,1739823040594,-500.0,0.00013697,2]
[353421956,1739823040604,-500.0,0.00013698,2]
[353421958,1739823040613,-331.19328373,0.00013698,2]
[353421960,1739823040622,-459.51,0.00013698,2]
[353421962,1739823040631,-551.8,0.00013698,2]
[353421964,1739823040640,-217.64,0.00013698,2]
[353421966,1739823040650,-500.0,0.00013698,2]
[353421968,1739823040659,-483.48,0.00013698,2]
[353421970,1739823040668,-403.73,0.00013698,2]
[353421972,1739823040678,-500.0,0.00013698,2]
[353421974,1739823040686,-279.07,0.00013698,2]
[353421976,1739823040696,-500.0,0.00013698,2]
[353421978,1739823040705,-458.04,0.00013698,2]
[353421980,1739823040715,-224.2,0.00013698,2]
[353421982,1739823040724,-500.0,0.00013698,2]
[353421984,1739823040735,-294.57,0.00013698,2]
[353421986,1739823040745,-500.0,0.00013698,2]
[353421987,1739823040756,-500.0,0.00013698,2]
[353421989,1739823040766,-500.0,0.00013698,2]
[353421992,1739823040776,-500.0,0.00013698,2]
[353421993,1739823040785,-500.0,0.00013698,2]
[353421995,1739823040794,-500.0,0.00013698,2]
[353421997,1739823040803,-500.0,0.00013698,2]
[353421999,1739823040812,-500.0,0.00013698,2]
[353422001,1739823040822,-500.0,0.00013698,2]
[353422003,1739823040831,-500.0,0.00013698,2]
[353422005,1739823040846,-500.0,0.00013698,2]
[353422007,1739823040856,-500.0,0.00013698,2]
[353422009,1739823040866,-623.04,0.00013698,2]
[353422011,1739823040875,-568.09835497,0.00013698,2]
[353422013,1739823040885,-500.0,0.00013698,2]
[353422015,1739823040895,-500.0,0.00013698,2]
[353422017,1739823040904,-518.54,0.00013698,2]
[353422019,1739823040914,-500.0,0.00013698,2]
[353422021,1739823040923,-610.14,0.00013698,2]
[353422023,1739823040932,-500.0,0.00013698,2]
[353422025,1739823040941,-500.0,0.00013698,2]
[353422027,1739823040950,-500.0,0.00013698,2]
[353422028,1739823040960,-517.73703362,0.00013698,2]
[353422031,1739823040972,-500.0,0.00013698,2]
[353422033,1739823040984,-500.0,0.00013698,2]
[353422035,1739823040993,-500.0,0.00013698,2]
[353422036,1739823041003,-500.0,0.00013698,2]
[353422039,1739823041014,-500.0,0.00013698,2]
[353422040,1739823041024,-500.0,0.00013698,2]
[353422042,1739823041034,-500.0,0.00013698,2]
[353422044,1739823041043,-500.0,0.00013698,2]
[353422046,1739823041056,-585.01,0.00013698,2]
[353422048,1739823041065,-500.0,0.00013698,2]
[353422050,1739823041075,-533.46,0.00013698,2]
[353422052,1739823041084,-500.0,0.00013698,2]
[353422054,1739823041094,-500.0,0.00013698,2]
[353422056,1739823041103,-500.0,0.00013698,2]
[353422058,1739823041112,-721.72,0.00013698,2]
[353422060,1739823041120,-500.0,0.00013698,2]
[353422062,1739823041129,-500.0,0.00013698,2]
[353422063,1739823041138,-500.0,0.00013698,2]
[353422065,1739823041148,-500.0,0.00013698,2]
[353422067,1739823041157,-500.0,0.00013698,2]
[353422069,1739823041167,-500.0,0.00013698,2]
[353422071,1739823041176,-500.0,0.00013698,2]
[353422073,1739823041185,-500.0,0.00013698,2]
[353422075,1739823041195,-500.0,0.00013698,2]
[353422077,1739823041205,-500.0,0.00013698,2]
[353422079,1739823041214,-500.0,0.00013698,2]
[353422081,1739823041223,-500.0,0.00013698,2]
[353422083,1739823041233,-336.28,0.00013698,2]
[353422085,1739823041242,-500.0,0.00013698,2]
[353422087,1739823041253,-500.0,0.00013698,2]
[353422089,1739823041263,-500.0,0.00013698,2]
[353422091,1739823041272,-343.52763871,0.00013698,2]
[353422093,1739823041282,-500.0,0.00013698,2]
[353422095,1739823041291,-337.43,0.00013698,2]
[353422097,1739823041300,-500.0,0.00013698,2]
[353422099,1739823041309,-500.0,0.00013698,2]
[353422101,1739823041318,-500.0,0.00013698,2]
[353422103,1739823041328,-500.0,0.00013698,2]
[353422105,1739823041337,-500.0,0.00013698,2]
[353422107,1739823041346,-500.0,0.00013698,2]
[353422109,1739823041355,-500.0,0.00013698,2]
[353422111,1739823041365,-500.0,0.00013698,2]
[353422113,1739823041374,-500.0,0.00013698,2]
[353422115,1739823041383,-500.0,0.00013698,2]
[353422117,1739823041392,-500.0,0.00013698,2]
[353422119,1739823041401,-500.0,0.00013698,2]
[353422121,1739823041411,-500.0,0.00013698,2]
[353422123,1739823041420,-351.97485427,0.00013698,2]
[353422125,1739823041429,-500.0,0.00013698,2]
[353422127,1739823041438,-500.0,0.00013698,2]
[353422129,1739823041447,-500.0,0.00013698,2]
[353422131,1739823041457,-500.0,0.00013698,2]
[353422133,1739823041466,-500.0,0.00013698,2]
[353422134,1739823041476,-500.0,0.00013698,2]
[353422136,1739823041485,-500.0,0.00013698,2]
[353422138,1739823041494,-500.0,0.00013698,2]
[353422140,1739823041504,-500.0,0.00013698,2]
[353422142,1739823041513,-500.0,0.00013698,2]
[353422144,1739823041523,-500.0,0.00013698,2]
[353422146,1739823041532,-500.0,0.00013698,2]
[353422148,1739823041541,-500.0,0.00013698,2]
[353422150,1739823041551,-500.0,0.00013698,2]
[353422152,1739823041561,-500.0,0.00013698,2]
[353422154,1739823041570,-500.0,0.00013698,2]
[353422156,1739823041579,-500.0,0.00013698,2]
[353422158,1739823041588,-500.0,0.00013698,2]
[353422160,1739823041598,-500.0,0.00013698,2]
[353422162,1739823041607,-516.15,0.00013698,2]
[353422164,1739823041616,-500.0,0.00013698,2]
[353422166,1739823041626,-500.0,0.00013698,2]
[353422168,1739823041635,-500.0,0.00013698,2]
[353422170,1739823041644,-500.0,0.00013698,2]
[353422172,1739823041654,-500.0,0.00013698,2]
[353422174,1739823041663,-500.0,0.00013698,2]
[353422176,1739823041673,-500.0,0.00013698,2]
[353422178,1739823041683,-500.0,0.00013698,2]
[353422180,1739823041692,-500.0,0.00013698,2]
[353422182,1739823041701,-500.0,0.00013698,2]
[353422184,1739823041711,-500.0,0.00013698,2]
[353422186,1739823041720,-500.0,0.00013698,2]
[353422188,1739823041731,-500.0,0.00013698,2]
[353422190,1739823041740,-500.0,0.00013698,2]
[353422192,1739823041749,-500.0,0.00013698,2]
[353422194,1739823041759,-500.0,0.00013698,2]
[353422196,1739823041768,-500.0,0.00013698,2]
[353422197,1739823041777,-500.0,0.00013698,2]
[353422199,1739823041787,-500.0,0.00013698,2]
[353422201,1739823041796,-217.27072053,0.00013698,2]
[353422203,1739823041805,-500.0,0.00013698,2]
[353422205,1739823041814,-500.0,0.00013698,2]
[353422207,1739823041824,-500.0,0.00013698,2]
[353422208,1739823041833,-635.45,0.00013698,2]
[353422209,1739823041843,-500.0,0.00013698,2]
[353422210,1739823041852,-500.0,0.00013698,2]
[353422211,1739823041861,-500.0,0.00013698,2]
[353422212,1739823041871,-640.42666926,0.00013698,2]
[353422213,1739823041880,-500.0,0.00013698,2]
[353422214,1739823041890,-500.0,0.00013698,2]
[353422215,1739823041899,-500.0,0.00013698,2]
[353422216,1739823041908,-174.35403479,0.00013698,2]
[353422217,1739823041917,-500.0,0.00013698,2]
[353422218,1739823041926,-500.0,0.00013698,2]
[353422219,1739823041935,-500.0,0.00013698,2]
[353422221,1739823041945,-500.0,0.00013698,2]
[353422223,1739823041955,-500.0,0.00013698,2]
[353422225,1739823041964,-500.0,0.00013698,2]
[353422226,1739823041977,-500.0,0.00013698,2]
[353422228,1739823041986,-502.70068354,0.00013698,2]
[353422230,1739823041995,-500.0,0.00013698,2]
[353422232,1739823042006,-500.0,0.00013698,2]
[353422234,1739823042016,-500.0,0.00013698,2]
[353422236,1739823042025,-500.0,0.00013698,2]
[353422238,1739823042035,-500.0,0.00013698,2]
[353422240,1739823042046,-500.0,0.00013698,2]
[353422242,1739823042055,-500.0,0.00013698,2]
[353422244,1739823042064,-500.0,0.00013698,2]
[353422246,1739823042074,-500.0,0.00013698,2]
[353422248,1739823042083,-500.0,0.00013698,2]
[353422250,1739823042092,-166.14,0.00013698,2]
[353422252,1739823042102,-500.0,0.00013698,2]
[353422254,1739823042111,-500.0,0.00013698,2]
[353422256,1739823042120,-500.0,0.00013698,2]
[353422258,1739823042129,-500.0,0.00013698,2]
[353422260,1739823042139,-500.0,0.00013698,2]
[353422262,1739823042148,-471.57,0.00013698,2]
[353422264,1739823042157,-500.0,0.00013698,2]
[353422266,1739823042166,-298.33,0.00013698,2]
[353422268,1739823042176,-500.0,0.00013698,2]
[353422270,1739823042185,-500.0,0.00013698,2]
[353422272,1739823042195,-552.72,0.00013698,2]
[353422274,1739823042205,-500.0,0.00013698,2]
[353422276,1739823042214,-502.68395473,0.00013698,2]
[353422278,1739823042223,-500.0,0.00013698,2]
[353422280,1739823042232,-500.0,0.00013698,2]